bitfinex-derivatives/quotes_BTCF0:USTF0_20251115
["timestamp","ask_amount","ask_price","bid_price","bid_amount"]
[1763196953336,0.005,95916.0,95911.0,0.7216]
[1763196953337,0.005,95916.0,95912.0,0.1043404]
[1763196954446,0.00026062,95926.0,95922.0,0.1043289]
[1763196954739,0.02234,95928.0,95926.0,0.1043251]
[1763196954945,0.09716,95928.0,95927.0,0.3608]
[1763196955445,0.20856914,95928.0,95927.0,0.3608]
[1763196956747,0.20956914,95928.0,95927.0,0.3608]
[1763196957336,0.13474914,95928.0,95927.0,0.3608]
[1763196957541,0.09716,95936.0,95930.0,0.00219803]
[1763196957743,0.02234,95944.0,95936.0,0.1043143]
[1763196957947,0.02234,95944.0,95943.0,0.3608]
[1763196958254,0.13424167,95944.0,95943.0,0.3608]
[1763196958952,0.02234,95944.0,95943.0,0.3608]
[1763196959446,0.02234,95952.0,95950.0,0.1042982]
[1763196959748,0.02234,95952.0,95951.0,0.3608]
[1763196959948,0.09675,95952.0,95951.0,0.3608]
[1763196960651,0.21597535,95952.0,95951.0,0.3608]
[1763196960853,0.09675,95952.0,95951.0,0.3608]
[1763196961448,0.21073625,95952.0,95951.0,0.3608]
[1763196962549,0.02234,95952.0,95951.0,0.3608]
[1763196962749,0.06066,95952.0,95951.0,0.3608]
[1763196963146,0.06066,95952.0,95951.0,0.40613223]
[1763196963746,0.02234,95960.0,95951.0,0.51043013]
[1763196963950,0.02307267,95960.0,95955.0,0.3608]
[1763196964554,0.02234,95960.0,95955.0,0.3608]
[1763196970356,0.02234,95960.0,95955.0,0.40613223]
[1763196973455,0.03946,95956.0,95955.0,0.40613223]
[1763196973757,0.005,95956.0,95955.0,0.40613223]
[1763196974753,0.0758,95956.0,95955.0,0.40613223]
[1763196975956,0.19315357,95956.0,95955.0,0.40613223]
[1763196976259,0.19315357,95956.0,95955.0,0.24676]
[1763196976557,0.0384,95948.0,95947.0,0.3608]
[1763196976951,0.15552517,95948.0,95947.0,0.3608]
[1763196978258,0.0384,95945.0,95939.0,0.3608]
[1763196978460,0.0381,95928.0,95927.0,0.3608]
[1763196978853,0.15740667,95928.0,95927.0,0.3608]
[1763196979451,0.0381,95919.0,95918.0,0.36095636]
[1763196979857,0.15604761,95919.0,95918.0,0.42974636]
[1763196980058,0.11794761,95919.0,95918.0,0.42974636]
[1763196980359,0.15604761,95919.0,95918.0,0.42974636]
[1763196980565,0.15604761,95919.0,95918.0,0.36095636]
[1763196982453,0.15604761,95919.0,95918.0,0.42974636]
[1763196983252,0.11794761,95919.0,95918.0,0.42974636]
[1763196984063,0.39905608,95937.0,95936.0,0.06879]
[1763196984461,0.0381,95931.0,95930.0,0.05622]
[1763196984660,0.0381,95931.0,95930.0,0.05841803]
[1763196984856,0.15794773,95931.0,95930.0,0.02408803]
[1763196985064,0.15794773,95931.0,95930.0,0.00219803]
[1763196986963,0.00219803,95930.0,95918.0,0.00015636]
[1763196987167,0.3608,95923.0,95918.0,0.00015636]
[1763196987466,0.10989041,95922.0,95918.0,0.00015636]
[1763196992880,0.10989041,95922.0,95920.0,0.02343]
[1763196993075,0.10989041,95922.0,95918.0,0.00015636]
[1763196993280,0.10989041,95922.0,95920.0,0.02343]
[1763196997085,0.10989041,95922.0,95921.0,0.07418]
[1763196997479,0.1172367,95929.0,95928.0,0.07418]
[1763196997678,0.00219803,95930.0,95928.0,0.07418]
[1763196997883,0.00219803,95930.0,95920.0,0.06115]
[1763196998182,0.11211148,95929.0,95920.0,0.09761]
[1763196998584,0.3608,95925.0,95920.0,0.09761]
[1763196998985,0.3608,95925.0,95924.0,0.07418]
[1763196999387,0.48078996,95925.0,95924.0,0.07418]
[1763197000194,0.11998996,95925.0,95924.0,0.07418]
[1763197000689,0.11361854,95932.0,95931.0,0.06115]
[1763197000890,0.3608,95933.0,95931.0,0.02343]
[1763197001085,0.11959086,95932.0,95931.0,0.02343]
[1763197002995,0.00219803,95930.0,95920.0,0.23857917]
[1763197003493,0.11296826,95929.0,95920.0,0.09761]
[1763197004788,0.11296826,95929.0,95928.0,0.02343]
[1763197005397,0.11296826,95929.0,95928.0,0.06115]
[1763197005595,0.11296826,95929.0,95928.0,0.09761]
[1763197010401,0.11396826,95929.0,95928.0,0.09761]
[1763197011092,0.11296826,95929.0,95928.0,0.09761]
[1763197017506,0.11296826,95929.0,95928.0,0.02343]
[1763197018507,0.11296826,95929.0,95920.0,0.02343]
[1763197018708,0.3608,95921.0,95920.0,0.02032034]
[1763197018908,0.3608,95921.0,95918.0,0.00015636]
[1763197019107,0.47954364,95921.0,95918.0,0.00015636]
[1763197019605,0.53535321,95921.0,95918.0,0.00015636]
[1763197020609,0.53635321,95921.0,95918.0,0.00015636]
[1763197020823,0.3608,95919.0,95918.0,0.00015636]
[1763197021309,0.47183218,95919.0,95904.0,0.05696]
[1763197021507,0.3608,95905.0,95904.0,0.05696]
[1763197021710,0.3608,95905.0,95904.0,0.09288]
[1763197021898,0.47183218,95905.0,95904.0,0.09288]
[1763197023708,0.0373645,95914.0,95913.0,0.09288]
[1763197023709,0.00015636,95914.0,95913.0,0.09288]
[1763197023908,0.00015636,95914.0,95913.0,0.45368]
[1763197024103,0.10888639,95914.0,95913.0,0.48176592]
[1763197024306,0.05325639,95914.0,95913.0,0.48176592]
[1763197024614,0.43265,95928.0,95927.0,0.07231]
[1763197024809,0.07185,95928.0,95927.0,0.07231]
[1763197025011,0.18058003,95928.0,95927.0,0.07231]
[1763197026303,0.10873003,95928.0,95927.0,0.07231]
[1763197026701,0.11045033,95929.0,95928.0,0.07231]
[1763197026906,0.11045033,95929.0,95922.0,0.01512]
[1763197026907,0.00015608,95937.0,95936.0,0.07231]
[1763197027313,0.12041196,95937.0,95936.0,0.07231]
[1763197029909,0.12141196,95937.0,95936.0,0.07231]
[1763197030512,0.00115608,95937.0,95936.0,0.43311]
[1763197034704,0.00115608,95937.0,95936.0,0.4548]
[1763197035710,0.00015608,95937.0,95936.0,0.4548]
[1763197036713,0.10875814,95955.0,95954.0,0.07343]
[1763197036917,0.07155,95955.0,95954.0,0.07343]
[1763197037114,0.19026153,95955.0,95954.0,0.07343]
[1763197038314,0.19126153,95955.0,95954.0,0.07343]
[1763197043934,0.11971153,95955.0,95954.0,0.07343]
[1763197045122,0.19126153,95955.0,95954.0,0.07343]
[1763197048518,0.15664153,95955.0,95954.0,0.07343]
[1763197049316,0.18981153,95955.0,95954.0,0.07343]
[1763197049730,0.11971153,95955.0,95954.0,0.07343]
[1763197053832,0.001,95955.0,95954.0,0.07343]
[1763197055124,0.06735,95955.0,95954.0,0.07343]
[1763197055326,0.06735,95955.0,95954.0,0.11876223]
[1763197055526,0.06735,95955.0,95954.0,0.14682598]
[1763197055924,0.03418,95955.0,95954.0,0.14682598]
[1763197056122,0.001,95955.0,95954.0,0.14682598]
[1763197056324,0.001,95955.0,95954.0,0.11876223]
[1763197056830,0.001,95955.0,95954.0,0.14685627]
[1763197057029,0.03418,95955.0,95954.0,0.14685627]
[1763197057232,0.03418,95955.0,95954.0,0.11876223]
[1763197058031,0.001,95955.0,95954.0,0.11876223]
[1763197067645,0.005,95956.0,95955.0,0.1733637]
[1763197067839,0.00026051,95966.0,95965.0,0.06907]
[1763197068039,0.00026051,95966.0,95965.0,0.42987]
[1763197068336,0.11258061,95966.0,95965.0,0.47520223]
[1763197068540,0.14576061,95966.0,95965.0,0.47520223]
[1763197068729,0.11258061,95966.0,95965.0,0.47520223]
[1763197069131,0.11258061,95966.0,95965.0,0.50332555]
[1763197069336,0.11258061,95966.0,95965.0,0.47520223]
[1763197070335,0.11358061,95966.0,95965.0,0.47520223]
[1763197070535,0.14676061,95966.0,95965.0,0.47520223]
[1763197070741,0.11358061,95966.0,95965.0,0.47520223]
[1763197071045,0.00126051,95966.0,95965.0,0.47520223]
[1763197074836,0.03444051,95966.0,95965.0,0.47520223]
[1763197078744,0.00126051,95966.0,95965.0,0.47520223]
[1763197080836,0.06219051,95966.0,95965.0,0.47520223]
[1763197081039,0.17440984,95966.0,95965.0,0.47361223]
[1763197082543,0.00126051,95966.0,95965.0,0.47361223]
[1763197083540,0.08306,95984.0,95983.0,0.06449]
[1763197084037,0.1951927,95984.0,95983.0,0.06449]
[1763197085648,0.1951927,95984.0,95983.0,0.03201]
[1763197085949,0.06093,95983.0,95982.0,0.42529]
[1763197086340,0.17636927,95983.0,95982.0,0.42529]
[1763197087145,0.17736927,95983.0,95982.0,0.42529]
[1763197087548,0.17736927,95983.0,95982.0,0.3608]
[1763197088449,0.17736927,95983.0,95982.0,0.42529]
[1763197090551,0.17736927,95983.0,95982.0,0.3608]
[1763197093557,0.17736927,95983.0,95982.0,0.39083]
[1763197095756,0.17736927,95983.0,95982.0,0.42122]
[1763197096864,0.17736927,95983.0,95982.0,0.43834]
[1763197098461,0.17636927,95983.0,95982.0,0.42122]
[1763197098762,0.17736927,95983.0,95982.0,0.42122]
[1763197101766,0.17736927,95983.0,95982.0,0.39083]
[1763197102066,0.17736927,95983.0,95982.0,0.3608]
[1763197102554,0.17736927,95983.0,95982.0,0.39083]
[1763197102757,0.17636927,95983.0,95982.0,0.42122]
[1763197104169,0.17636927,95983.0,95982.0,0.3608]
[1763197104353,0.17636927,95983.0,95977.0,0.04533223]
[1763197104354,0.06008,95978.0,95977.0,0.10575223]
[1763197104666,0.18047122,95978.0,95977.0,0.10575223]
[1763197105055,0.18047122,95978.0,95974.0,0.40628851]
[1763197105260,0.06008,95975.0,95974.0,0.43631851]
[1763197105463,0.06008,95975.0,95974.0,0.46670851]
[1763197105660,0.17288388,95975.0,95974.0,0.46670851]
[1763197110966,0.17288388,95975.0,95974.0,0.42137628]
[1763197113264,0.11280388,95975.0,95974.0,0.42137628]
[1763197113664,0.03720814,95993.0,95992.0,0.0573]
[1763197113665,0.05725,95993.0,95992.0,0.0573]
[1763197113965,0.07397,95988.0,95987.0,0.08545475]
[1763197114269,0.17165513,95988.0,95987.0,0.08545475]
[1763197116170,0.17165513,95988.0,95987.0,0.0573]
[1763197118868,0.18837513,95988.0,95987.0,0.0573]
[1763197120172,0.17165513,95988.0,95987.0,0.0573]
[1763197137580,0.17165513,95988.0,95987.0,0.08543691]
[1763197137986,0.05415,95996.0,95995.0,0.05135]
[1763197138186,0.05415,95996.0,95995.0,0.41215]
[1763197138486,0.17374556,95996.0,95995.0,0.41215]
[1763197139276,0.17474556,95996.0,95995.0,0.41215]
[1763197143484,0.0002604,96006.0,96005.0,0.06615]
[1763197143779,0.16360499,96006.0,96005.0,0.42695]
[1763197145190,0.11445499,96006.0,96005.0,0.45505899]
[1763197145381,0.13969499,96006.0,96005.0,0.42695]
[1763197145582,0.11545499,96006.0,96005.0,0.42695]
[1763197146392,0.0012604,96006.0,96005.0,0.42695]
[1763197147880,0.04915,96020.0,96019.0,0.05135]
[1763197148086,0.04915,96020.0,96019.0,0.41215]
[1763197148387,0.15975621,96020.0,96019.0,0.41215]
[1763197148586,0.17680424,96020.0,96019.0,0.41215]
[1763197148983,0.002,96020.0,96019.0,0.41215]
[1763197149186,0.05115,96020.0,96019.0,0.41215]
[1763197149783,0.06619803,96020.0,96019.0,0.41215]
[1763197150797,0.05134803,96020.0,96019.0,0.41215]
[1763197150986,0.15987956,96020.0,96019.0,0.3608]
[1763197151497,0.15987956,96020.0,96019.0,0.3868]
[1763197151793,0.15987956,96020.0,96019.0,0.3608]
[1763197152090,0.15987956,96020.0,96013.0,0.05262]
[1763197152091,0.054,96014.0,96013.0,0.05262]
[1763197152496,0.171535,96014.0,96013.0,0.05262]
[1763197152688,0.06574,96006.0,96005.0,0.3608]
[1763197153095,0.054,96002.0,96001.0,0.09795223]
[1763197153391,0.16933865,96002.0,96001.0,0.09795223]
[1763197157997,0.16933865,96002.0,96001.0,0.05262]
[1763197165195,0.14133865,96002.0,96001.0,0.05262]
[1763197165498,0.11533865,96002.0,96001.0,0.05262]
[1763197165892,0.16387762,96008.0,96007.0,0.05262]
[1763197166093,0.054,96008.0,96007.0,0.41342]
[1763197166291,0.16387762,96008.0,96007.0,0.41342]
[1763197166901,0.054,95999.0,95998.0,0.10755745]
[1763197167105,0.054,95998.0,95997.0,0.3868]
[1763197167302,0.054,95998.0,95997.0,0.3608]
[1763197167599,0.17154367,95998.0,95997.0,0.3608]
[1763197168602,0.17154367,95998.0,95997.0,0.3868]
[1763197169201,0.17154367,95998.0,95997.0,0.41184]
[1763197170200,0.05172,95997.0,95989.0,0.02808908]
[1763197170403,0.05172,95972.0,95971.0,0.02544]
[1763197170699,0.16275567,95972.0,95971.0,0.05048]
[1763197172896,0.16275567,95972.0,95971.0,0.05148]
[1763197173400,0.13748567,95972.0,95971.0,0.07956908]
[1763197173609,0.00015599,95981.0,95980.0,0.05048]
[1763197173610,0.02660599,95981.0,95980.0,0.05048]
[1763197173802,0.05187599,95981.0,95980.0,0.05048]
[1763197174003,0.16820097,95981.0,95980.0,0.05048]
[1763197180209,0.11648097,95981.0,95980.0,0.05048]
[1763197180502,0.16820097,95981.0,95980.0,0.07855697]
[1763197180710,0.16820097,95981.0,95980.0,0.05048]
[1763197181400,0.16820097,95981.0,95980.0,0.07855697]
[1763197181808,0.16820097,95981.0,95980.0,0.05048]
[1763197183304,0.16820097,95981.0,95980.0,0.02544]
[1763197183907,0.16820097,95981.0,95980.0,0.05048]
[1763197184212,0.16820097,95981.0,95980.0,0.09581223]
[1763197189008,0.14293097,95981.0,95980.0,0.09581223]
[1763197189509,0.16820097,95981.0,95980.0,0.09581223]
[1763197199723,0.16820097,95981.0,95980.0,0.04533223]
[1763197199913,0.16820097,95981.0,95971.0,0.07173166]
[1763197199914,0.04594,95972.0,95971.0,0.10924172]
[1763197200113,0.04594,95972.0,95969.0,0.3608]
[1763197200114,0.06125803,95970.0,95969.0,0.3608]
[1763197200411,0.17221522,95970.0,95969.0,0.3608]
[1763197200809,0.17221522,95970.0,95969.0,0.406]
[1763197201019,0.17221522,95970.0,95969.0,0.38288]
[1763197201915,0.17221522,95970.0,95969.0,0.406]
[1763197202120,0.15689719,95970.0,95969.0,0.406]
[1763197202316,0.13303719,95970.0,95969.0,0.406]
[1763197202520,0.15689719,95970.0,95969.0,0.406]
[1763197202910,0.02208,95970.0,95969.0,0.406]
[1763197203114,0.04813803,95970.0,95969.0,0.38288]
[1763197203315,0.17643025,95970.0,95969.0,0.3608]
[1763197203619,0.17643025,95970.0,95963.0,0.04533223]
[1763197203620,0.05459,95964.0,95963.0,0.04533223]
[1763197203917,0.16478434,95964.0,95963.0,0.04533223]
[1763197204214,0.04594,95950.0,95940.0,0.4325559]
[1763197204515,0.04594,95930.0,95929.0,0.3608]
[1763197204717,0.04594,95927.0,95920.0,0.02813605]
[1763197204918,0.01284,95928.0,95900.0,0.0717559]
[1763197204919,0.04594,95915.0,95913.0,0.02813605]
[1763197205122,0.04594,95914.0,95913.0,0.0452]
[1763197205421,0.1564244,95914.0,95913.0,0.0452]
[1763197205613,0.04605877,95914.0,95913.0,0.0452]
[1763197205816,0.15999504,95914.0,95913.0,0.0452]
[1763197206416,0.02219877,95914.0,95913.0,0.0452]
[1763197206611,0.00011877,95914.0,95913.0,0.0452]
[1763197206819,0.00015636,95923.0,95922.0,0.0452]
[1763197207021,0.00015636,95923.0,95922.0,0.406]
[1763197207414,0.02223636,95923.0,95922.0,0.406]
[1763197207717,0.04609636,95923.0,95922.0,0.406]
[1763197208323,0.02223636,95923.0,95922.0,0.406]
[1763197208518,0.02223636,95923.0,95922.0,0.407]
[1763197208519,0.00015636,95923.0,95922.0,0.407]
[1763197209215,0.37143,95940.0,95922.0,0.407]
[1763197209216,0.04594,95940.0,95939.0,0.0452]
[1763197209415,0.04813803,95940.0,95939.0,0.0452]
[1763197209622,0.16567971,95940.0,95939.0,0.0452]
[1763197209821,0.37392,95960.0,95939.0,0.0452]
[1763197209822,0.01312,95960.0,95939.0,0.0452]
[1763197210023,0.01312,95960.0,95937.0,0.3608]
[1763197210024,0.04813803,95950.0,95949.0,0.0452]
[1763197210516,0.15978734,95950.0,95949.0,0.02208]
[1763197210917,0.04594,95947.0,95946.0,0.38288]
[1763197211322,0.16288688,95947.0,95946.0,0.406]
[1763197211718,0.00219803,95950.0,95949.0,0.04655]
[1763197213024,0.02473803,95950.0,95949.0,0.04655]
[1763197213417,0.04646803,95950.0,95949.0,0.04655]
[1763197213618,0.00219803,95950.0,95949.0,0.04655]
[1763197214413,0.04442621,95959.0,95958.0,0.04655]
[1763197214622,0.00015621,95959.0,95958.0,0.04655]
[1763197215431,0.40507,95981.0,95980.0,0.04655]
[1763197215822,0.04427,95974.0,95973.0,0.40735]
[1763197220328,0.00219803,95970.0,95965.0,0.3608]
[1763197220628,0.04427,95966.0,95965.0,0.3608]
[1763197221021,0.15890616,95966.0,95965.0,0.3608]
[1763197221620,0.15890616,95966.0,95965.0,0.3618]
[1763197222022,0.15890616,95966.0,95965.0,0.001]
[1763197223029,0.04427,95965.0,95964.0,0.00015628]
[1763197223431,0.16406447,95965.0,95964.0,0.00015628]
[1763197225924,0.16406447,95965.0,95950.0,0.14092343]
[1763197225925,0.04427,95945.0,95944.0,0.38378]
[1763197226223,0.15436388,95945.0,95944.0,0.38378]
[1763197226830,0.15436388,95945.0,95944.0,0.40735]
[1763197227132,0.15436388,95945.0,95944.0,0.40835]
[1763197227632,0.15436388,95945.0,95944.0,0.40735]
[1763197228630,0.15436388,95945.0,95944.0,0.42042]
[1763197229923,0.11009388,95945.0,95944.0,0.42042]
[1763197230330,0.13816474,95952.0,95951.0,0.04485]
[1763197230528,0.0211,95952.0,95951.0,0.04485]
[1763197230831,0.15831008,95952.0,95951.0,0.04485]
[1763197232033,0.15831008,95952.0,95936.0,0.3608]
[1763197232034,0.02384,95912.0,95910.0,0.05625117]
[1763197232234,0.02384,95896.0,95895.0,0.02696261]
[1763197232530,0.497625,95896.0,95895.0,0.00469261]
[1763197232831,0.497625,95896.0,95895.0,0.02696261]
[1763197233036,0.3608,95908.0,95895.0,0.02696261]
[1763197233037,0.3608,95908.0,95907.0,0.04485]
[1763197233536,0.47762797,95908.0,95907.0,0.04485]
[1763197234128,0.48954797,95908.0,95907.0,0.04485]
[1763197234428,0.47762797,95908.0,95907.0,0.04485]
[1763197235226,0.48954797,95908.0,95907.0,0.04485]
[1763197235539,0.47762797,95908.0,95907.0,0.04485]
[1763197235738,0.48954797,95908.0,95907.0,0.04485]
[1763197236534,0.50146797,95908.0,95907.0,0.04485]
[1763197240437,0.50146797,95908.0,95907.0,0.04585]
[1763197241237,0.37287636,95917.0,95916.0,0.04485]
[1763197241442,0.00015636,95917.0,95916.0,0.04485]
[1763197241643,0.11433428,95917.0,95916.0,0.04485]
[1763197242043,0.3608,95930.0,95929.0,0.04485]
[1763197242345,0.11816821,95930.0,95929.0,0.04485]
[1763197242643,0.13024821,95930.0,95929.0,0.04485]
[1763197242843,0.14232821,95930.0,95929.0,0.04485]
[1763197243635,0.14232821,95930.0,95924.0,0.3608]
[1763197243842,0.02416,95925.0,95924.0,0.40565]
[1763197244140,0.13985356,95925.0,95924.0,0.40565]
[1763197244444,0.02416,95916.0,95915.0,0.04485]
[1763197244636,0.38496,95916.0,95915.0,0.02227]
[1763197244837,0.02416,95913.0,95903.0,0.3608]
[1763197245143,0.13777451,95913.0,95903.0,0.3608]
[1763197245838,0.13777451,95913.0,95912.0,0.05792]
[1763197247737,0.02416,95908.0,95907.0,0.04500636]
[1763197248136,0.14474652,95908.0,95907.0,0.04500636]
[1763197249341,0.14474652,95908.0,95907.0,0.04600636]
[1763197250248,0.14474652,95908.0,95907.0,0.00115636]
[1763197250448,0.50554652,95908.0,95907.0,0.00115636]
[1763197255443,0.50554652,95908.0,95907.0,0.04600636]
[1763197255750,0.13266652,95908.0,95907.0,0.04600636]
[1763197256747,0.14474652,95908.0,95907.0,0.04600636]
[1763197257852,0.14474652,95908.0,95907.0,0.04700636]
[1763197259747,0.12058652,95908.0,95907.0,0.04700636]
[1763197260149,0.00219803,95910.0,95909.0,0.0449]
[1763197260455,0.02635803,95910.0,95909.0,0.4057]
[1763197261454,0.13704483,95910.0,95909.0,0.4057]
[1763197262256,0.17432843,95910.0,95909.0,0.4057]
[1763197262561,0.17432843,95910.0,95909.0,0.4067]
[1763197262751,0.13704483,95910.0,95909.0,0.4067]
[1763197268358,0.17432843,95910.0,95909.0,0.4067]
[1763197270156,0.17432843,95910.0,95909.0,0.001]
[1763197270352,0.13704483,95910.0,95909.0,0.001]
[1763197271358,0.02416,95908.0,95907.0,0.00015636]
[1763197271760,0.13841988,95908.0,95907.0,0.00015636]
[1763197272961,0.13841988,95908.0,95907.0,0.00115636]
[1763197273260,0.17572068,95908.0,95907.0,0.00115636]
[1763197274157,0.13841988,95908.0,95907.0,0.00115636]
[1763197279363,0.11425988,95908.0,95907.0,0.04693636]
[1763197279663,0.11801313,95909.0,95907.0,0.36195636]
[1763197279863,0.11801313,95909.0,95908.0,0.04578]
[1763197280062,0.00219803,95910.0,95909.0,0.04578]
[1763197280465,0.12185152,95910.0,95909.0,0.04578]
[1763197280668,0.13393152,95910.0,95909.0,0.04578]
[1763197280860,0.14601152,95910.0,95909.0,0.04578]
[1763197281467,0.14601152,95910.0,95909.0,0.02421]
[1763197281666,0.14601152,95910.0,95909.0,0.001]
[1763197283355,0.02384,95896.0,95895.0,0.00469261]
[1763197283565,0.42196359,95896.0,95895.0,0.00469261]
[1763197283766,0.49745307,95896.0,95895.0,0.00469261]
[1763197284067,0.49745307,95896.0,95872.0,0.03596]
[1763197284068,0.02384,95873.0,95872.0,0.03596]
[1763197284461,0.13522784,95873.0,95872.0,0.03596]
[1763197284866,0.02384,95867.0,95866.0,0.04589009]
[1763197285254,0.14466636,95867.0,95866.0,0.04589009]
[1763197287766,0.14466636,95867.0,95866.0,0.04689009]
[1763197289068,0.14466636,95867.0,95866.0,0.00111009]
[1763197290071,0.14466636,95867.0,95866.0,0.04523009]
[1763197290666,0.14466636,95867.0,95866.0,0.00111009]
[1763197291165,0.14466636,95867.0,95866.0,0.00011009]
[1763197291360,0.14466636,95867.0,95866.0,0.00111009]
[1763197291567,0.02384,95864.0,95863.0,0.00015646]
[1763197291766,0.01414,95847.0,95832.0,0.01281]
[1763197291958,0.01414,95847.0,95825.0,0.3608]
[1763197291959,0.01414,95826.0,95825.0,0.40492]
[1763197292364,0.12513203,95826.0,95825.0,0.40492]
[1763197292563,0.12526214,95826.0,95825.0,0.40492]
[1763197293769,0.12526214,95826.0,95825.0,0.40592]
[1763197294072,0.12526214,95826.0,95825.0,0.3618]
[1763197294269,0.12526214,95826.0,95825.0,0.3628]
[1763197294665,0.12526214,95826.0,95825.0,0.38559]
[1763197295070,0.12526214,95826.0,95825.0,0.40692]
[1763197295270,0.48606214,95826.0,95825.0,0.002]
[1763197295769,0.01414,95817.0,95816.0,0.01296646]
[1763197296072,0.48482442,95817.0,95815.0,2.99e-06]
[1763197296263,0.00444,95807.0,95800.0,0.01281]
[1763197296663,0.11421074,95807.0,95800.0,0.01281]
[1763197297468,0.11421074,95807.0,95806.0,0.00126095]
[1763197297772,0.00444,95798.0,95797.0,0.00015654]
[1763197297969,0.00011885,95798.0,95797.0,0.04427654]
[1763197298166,0.11273631,95798.0,95797.0,0.04427654]
[1763197298366,0.00011885,95798.0,95797.0,0.04427654]
[1763197298575,0.00015654,95807.0,95806.0,0.04412]
[1763197298974,0.10913179,95807.0,95806.0,0.04412]
[1763197299472,0.10913179,95807.0,95806.0,0.04512]
[1763197299863,0.03913179,95807.0,95806.0,0.40592]
[1763197300063,0.3608,95839.0,95806.0,0.40592]
[1763197300274,0.00219803,95830.0,95829.0,0.14519987]
[1763197300471,0.04598803,95830.0,95829.0,0.04412]
[1763197300774,0.1621582,95830.0,95829.0,0.02279]
[1763197300971,0.1621582,95830.0,95820.0,0.14519987]
[1763197300972,0.04379,95821.0,95820.0,0.14519987]
[1763197301175,0.04379,95821.0,95820.0,0.04412]
[1763197301366,0.11106252,95821.0,95820.0,0.04412]
[1763197301769,0.11106252,95829.0,95828.0,0.04412]
[1763197301968,0.00335457,95830.0,95829.0,0.04412]
[1763197302369,0.11361118,95830.0,95829.0,0.04412]
[1763197302770,0.00335457,95830.0,95829.0,0.04412]
[1763197303177,0.05624,95850.0,95849.0,0.02279]
[1763197303374,0.05843803,95850.0,95849.0,0.04412]
[1763197303578,0.17474058,95850.0,95849.0,0.04412]
[1763197304574,0.04379,95841.0,95840.0,0.04427654]
[1763197304979,0.16375341,95841.0,95840.0,0.04427654]
[1763197306786,0.14194341,95841.0,95840.0,0.04427654]
[1763197307591,0.17694341,95841.0,95840.0,0.00015654]
[1763197307796,0.53774341,95841.0,95840.0,0.00015654]
[1763197310896,0.04379,95821.0,95820.0,0.14519987]
[1763197311191,0.04379,95821.0,95820.0,0.40492]
[1763197311192,0.11854819,95821.0,95820.0,0.40492]
[1763197311597,0.37399,95841.0,95820.0,0.40492]
[1763197311798,0.04598803,95830.0,95829.0,0.04412]
[1763197312186,0.15988417,95830.0,95829.0,0.04412]
[1763197312793,0.11389614,95830.0,95829.0,0.04412]
[1763197313097,0.00219803,95830.0,95829.0,0.3608]
[1763197313298,0.04598803,95830.0,95829.0,0.38359]
[1763197313502,0.15796016,95830.0,95829.0,0.40492]
[1763197322304,0.13615016,95830.0,95829.0,0.40492]
[1763197322710,0.15756016,95830.0,95829.0,0.40492]
[1763197323705,0.15756016,95830.0,95829.0,0.3608]
[1763197323905,0.15756016,95830.0,95823.0,0.04533223]
[1763197323906,0.04253,95824.0,95823.0,0.08779223]
[1763197324309,0.15848741,95824.0,95823.0,0.08779223]
[1763197325110,0.13707741,95824.0,95823.0,0.08879223]
[1763197325703,0.15848741,95824.0,95823.0,0.08879223]
[1763197325911,0.17021741,95824.0,95823.0,0.04346]
[1763197327821,0.15848741,95824.0,95823.0,0.04346]
[1763197329719,0.13707741,95824.0,95823.0,0.04346]
[1763197329911,0.11595741,95824.0,95823.0,0.04346]
[1763197330421,0.19479464,95835.0,95834.0,0.02101]
[1763197330613,0.04253,95835.0,95834.0,0.02101]
[1763197330816,0.157653,95835.0,95834.0,0.02101]
[1763197331228,0.115123,95835.0,95834.0,0.04246]
[1763197331618,0.11509408,95836.0,95835.0,0.04535]
[1763197331819,0.11509408,95839.0,95838.0,0.04535]
[1763197332025,0.11509408,95839.0,95833.0,0.38893954]
[1763197332026,0.00015654,95840.0,95839.0,0.04535]
[1763197332324,0.15858464,95840.0,95839.0,0.04535]
[1763197332525,0.17254464,95840.0,95839.0,0.04535]
[1763197333717,0.15858464,95840.0,95839.0,0.04535]
[1763197335926,0.04342,95836.0,95835.0,0.38366]
[1763197336326,0.15552794,95836.0,95835.0,0.38366]
[1763197336531,0.15552794,95836.0,95835.0,0.3608]
[1763197338622,0.15552794,95836.0,95835.0,0.40615]
[1763197340327,0.15552794,95836.0,95835.0,0.38366]
[1763197340729,0.15552794,95836.0,95835.0,0.40615]
[1763197342331,0.11210794,95836.0,95835.0,0.40615]
[1763197342528,0.15552794,95836.0,95835.0,0.40615]
[1763197342826,0.15552794,95836.0,95835.0,0.3608]
[1763197342827,0.04342,95836.0,95835.0,0.3608]
[1763197343132,0.16134877,95836.0,95835.0,0.3608]
[1763197343324,0.04342,95822.0,95821.0,0.11899662]
[1763197343531,0.04342,95822.0,95821.0,0.04550654]
[1763197344941,0.1582753,95822.0,95821.0,0.04550654]
[1763197348233,0.1148553,95822.0,95821.0,0.04550654]
[1763197348634,0.16548246,95836.0,95835.0,0.04341]
[1763197348834,0.04432,95836.0,95835.0,0.04341]
[1763197349034,0.15385606,95836.0,95835.0,0.04341]
[1763197349437,0.04432,95830.0,95829.0,0.3608]
[1763197349736,0.15605409,95830.0,95829.0,0.3608]
[1763197351331,0.15605409,95830.0,95829.0,0.38183]
[1763197351831,0.15605409,95830.0,95829.0,0.40421]
[1763197352233,0.15605409,95830.0,95829.0,0.04341]
[1763197352532,0.2120305,95830.0,95829.0,0.04341]
[1763197352726,0.15605409,95830.0,95829.0,0.04341]
[1763197353333,0.15605409,95830.0,95829.0,0.02103]
[1763197353640,0.15605409,95830.0,95821.0,0.00015654]
[1763197353641,0.01923915,95822.0,95821.0,0.04356654]
[1763197353934,0.15200512,95822.0,95821.0,0.04356654]
[1763197355439,0.13276597,95822.0,95821.0,0.04356654]
[1763197356338,0.15579597,95822.0,95821.0,0.04356654]
[1763197358341,0.13276597,95822.0,95821.0,0.04356654]
[1763197359138,0.15579597,95822.0,95821.0,0.00015654]
[1763197359341,0.04432,95806.0,95805.0,0.03735522]
[1763197359642,0.04432,95789.0,95788.0,0.02103]
[1763197359837,0.04432,95789.0,95785.0,0.3608]
[1763197359838,0.04432,95786.0,95785.0,0.38183]
[1763197360033,0.04432,95786.0,95785.0,0.40421]
[1763197360245,0.15623931,95786.0,95785.0,0.40421]